bitfinex/quotes_ETHUSD_20240731
["timestamp","ask_amount","ask_price","bid_price","bid_amount"]
[1722388820605,1.27135389,3290.3,3290.1,0.2951546]
[1722388820828,1.27135389,3290.3,3289.6,10.46982]
[1722388821106,1.27135389,3290.3,3289.6,10.46979]
[1722388821107,1.27135389,3290.1,3289.6,10.46979]
[1722388821433,1.27135389,3290.0,3289.7,3.03972]
[1722388821717,1.27135389,3290.0,3289.6,7.43]
[1722388821718,1.27135389,3290.0,3289.6,10.46987]
[1722388821873,1.27135389,3290.0,3289.7,3.03971]
[1722388822607,1.27135389,3290.0,3289.8,3.03969]
[1722388822792,1.27135389,3290.1,3289.8,3.03969]
[1722388823112,1.27135389,3290.1,3289.6,11.783927]
[1722388823113,1.27135389,3289.9,3289.6,11.783927]
[1722388823645,1.27135389,3289.9,3289.7,3.03978]
[1722388823796,1.27135389,3290.0,3289.7,3.03978]
[1722388823996,1.27135389,3290.0,3289.6,11.783927]
[1722388824290,1.27135389,3289.9,3289.6,11.783927]
[1722388824492,3.647042,3290.4,3289.6,10.46987]
[1722388824698,1.27170519,3289.9,3289.6,10.46987]
[1722388825498,1.27170519,3289.9,3289.6,3.03987]
[1722388825687,1.27170519,3289.9,3289.7,3.03972]
[1722388825883,1.27170519,3290.0,3289.7,3.03972]
[1722388826289,1.27170519,3290.0,3289.5,3.4399]
[1722388826487,2.4906,3290.3,3289.5,4.314963]
[1722388826488,1.27170519,3289.9,3289.5,4.314963]
[1722388826810,1.27170519,3289.9,3289.5,3.4399]
[1722388827390,1.27170519,3289.8,3289.5,3.4399]
[1722388827913,1.27170519,3289.8,3289.5,0.4]
[1722388828219,1.27170519,3289.6,3289.5,0.4]
[1722388829109,7.11156311,3289.7,3289.5,0.4]
[1722388829418,4.62988311,3289.6,3289.5,0.4]
[1722388829732,3.03988,3289.6,3289.5,0.4]
[1722388830732,4.39005073,3289.7,3289.5,0.4]
[1722388831313,2.4817,3289.7,3289.5,0.4]
[1722388831717,1.90835073,3289.8,3289.5,0.4]
[1722388831916,1.59019754,3289.7,3289.5,0.4]
[1722388832090,1.27212452,3289.7,3289.5,3.72383991]
[1722388832292,1.33565718,3289.7,3289.5,3.72383991]
[1722388832515,1.27212452,3289.6,3289.5,0.4]
[1722388832816,1.33355648,3289.6,3289.5,0.4]
[1722388833015,1.6516295,3289.6,3289.5,0.4]
[1722388833222,0.06143196,3289.6,3289.5,0.4]
[1722388833382,1.33371359,3289.6,3289.5,0.4]
[1722388833583,0.06143196,3289.6,3289.5,0.4]
[1722388834704,1.90865777,3289.7,3289.5,0.4]
[1722388834884,0.06135146,3289.6,3289.5,0.4]
[1722388835694,3.10123146,3289.6,3289.5,0.4]
[1722388835950,5.00988923,3289.6,3289.5,0.4]
[1722388836088,3.10123146,3289.6,3289.5,0.4]
[1722388837116,5.01040808,3289.6,3289.5,0.4]
[1722388837329,6.16789717,3289.6,3289.5,0.4]
[1722388837689,3.12801717,3289.6,3289.5,0.4]
[1722388837934,1.97052808,3289.6,3289.5,0.4]
[1722388838102,0.06135146,3289.6,3289.5,0.4]
[1722388839113,1.90917662,3289.8,3289.5,0.4]
[1722388839455,0.06133172,3289.6,3289.5,0.4]
[1722388839658,1.90917662,3289.7,3289.5,0.4]
[1722388839950,0.06129544,3289.6,3289.5,0.4]
[1722388841413,4.94939291,3289.8,3289.5,0.4]
[1722388841614,0.06134915,3289.6,3289.5,0.4]
[1722388841951,0.06134673,3289.6,3289.5,0.4]
[1722388842665,1.59204242,3289.6,3289.5,3.43997]
[1722388842873,0.06133272,3289.6,3289.5,3.43997]
[1722388843176,1.33513773,3289.6,3289.5,3.43997]
[1722388843551,0.06133272,3289.6,3289.5,4.330882]
[1722388843875,1.33551294,3289.6,3289.5,4.330882]
[1722388844171,1.27418022,3289.6,3289.5,4.330882]
[1722388844339,1.59273497,3289.7,3289.6,3.03988]
[1722388844538,3.0,3289.9,3289.6,3.03988]
[1722388844738,1.91128196,3289.9,3289.5,4.330872]
[1722388844974,1.91128196,3289.8,3289.5,0.4]
[1722388846109,1.91128196,3289.8,3289.6,0.2]
[1722388846375,1.91128196,3289.7,3289.6,0.2]
[1722388846737,1.91283457,3289.7,3289.6,0.2]
[1722388849574,1.9742249,3289.7,3289.6,0.2]
[1722388849773,1.9742249,3289.7,3289.6,3.23988]
[1722388849989,0.06139033,3289.7,3289.6,3.23988]
[1722388850186,1.91278097,3289.9,3289.6,3.43988]
[1722388850385,0.06138971,3289.7,3289.6,3.43988]
[1722388850591,1.91278097,3289.8,3289.6,3.43988]
[1722388850786,0.06139393,3289.7,3289.6,3.43988]
[1722388851086,0.06139814,3289.7,3289.6,3.43988]
[1722388851487,1.91278097,3289.8,3289.6,3.43988]
[1722388851698,0.06138372,3289.7,3289.6,3.43988]
[1722388851865,1.91278097,3289.9,3289.6,5.83568]
[1722388852187,0.06140074,3289.8,3289.6,6.483664]
[1722388853854,1.97458383,3289.8,3289.6,6.483664]
[1722388854060,0.06140074,3289.8,3289.7,6.07958]
[1722388854254,1.65557676,3289.8,3289.7,6.07958]
[1722388854586,1.65562052,3289.8,3289.7,6.07958]
[1722388855077,0.0614445,3289.8,3289.7,3.03979]
[1722388855452,1.91318309,3290.0,3289.7,3.03979]
[1722388855657,1.91307356,3290.0,3289.7,3.03979]
[1722388855878,0.06144105,3289.9,3289.7,3.03979]
[1722388857009,0.06144105,3289.9,3289.8,6.07938]
[1722388857219,1.91317623,3290.1,3289.9,3.03955]
[1722388858421,1.91317623,3290.1,3290.0,3.03951]
[1722388859996,1.91314875,3290.1,3290.0,3.03951]
[1722388860396,1.91314875,3290.2,3290.1,3.03942]
[1722388861832,1.91314875,3290.3,3290.1,3.03942]
[1722388862241,3.0,3290.5,3290.1,3.03942]
[1722388862395,1.91335919,3290.3,3290.1,3.03942]
[1722388862917,1.91335919,3290.3,3289.7,0.907553]
[1722388862918,1.9132735,3290.3,3290.2,8.56764]
[1722388863274,0.3179786,3290.8,3290.3,6.07846]
[1722388863275,1.59425359,3290.4,3290.3,6.07846]
[1722388863534,1.59425359,3290.6,3290.5,6.0781]
[1722388864141,1.9132735,3290.9,3290.5,3.03905]
[1722388864307,1.59379082,3290.6,3290.5,3.03905]
[1722388864512,12.79568,3291.4,3290.7,3.03884]
[1722388864837,1.9120845,3291.0,3290.7,3.03884]
[1722388865432,5.23076525,3291.3,3290.7,3.03884]
[1722388865433,3.0,3291.3,3290.7,3.03884]
[1722388865609,1.91224564,3291.0,3290.8,3.03877]
[1722388866131,1.91224564,3291.1,3290.8,3.03877]
[1722388866720,1.91224564,3291.2,3291.0,3.03859]
[1722388866944,1.91224564,3291.3,3291.0,3.03859]
[1722388867445,1.91224564,3291.4,3291.0,3.03859]
[1722388867740,1.91224564,3291.3,3290.6,5.40354]
[1722388867946,1.59195828,3290.8,3290.4,3.03913]
[1722388868104,1.27369268,3290.5,3290.2,3.03925]
[1722388868308,1.27369268,3290.3,3290.2,1.283385]
[1722388868644,1.59213329,3290.4,3289.9,3.03953]
[1722388868862,1.27371946,3290.2,3290.1,3.03941]
[1722388869276,1.59213329,3290.4,3290.2,3.03932]
[1722388869277,1.27371946,3290.3,3290.2,3.03932]
[1722388869656,1.59213329,3290.4,3290.1,3.03941]
[1722388869851,1.27363558,3290.2,3290.1,3.03941]
[1722388870591,1.59213329,3290.3,3290.1,3.03941]
[1722388870806,3.03878,3290.8,3289.9,3.03958]
[1722388870807,1.59213329,3290.2,3289.9,3.03958]
[1722388870952,1.27360165,3290.1,3289.9,3.03958]
[1722388871748,3.03897,3290.6,3289.9,3.03958]
[1722388871988,1.27357202,3290.1,3289.7,3.03975]
[1722388872189,1.27357202,3290.1,3289.6,8.43]
[1722388872190,2.2739,3290.3,3289.6,8.43]
[1722388872392,2.2739,3290.3,3289.6,11.46988]
[1722388872393,1.27367589,3289.7,3289.6,11.46988]
[1722388872705,1.59217553,3289.7,3289.6,4.03988]
[1722388873015,1.27374156,3289.7,3289.6,4.03988]
[1722388873222,0.05762447,3289.7,3289.6,4.03988]
[1722388873500,1.27369293,3289.8,3289.7,3.03979]
[1722388873648,1.27369293,3289.9,3289.8,3.03969]
[1722388873855,1.59217553,3290.0,3289.7,3.03979]
[1722388874104,1.27367162,3289.8,3289.7,3.03979]
[1722388874455,1.59217553,3289.9,3289.6,1.947629]
[1722388874658,1.59217553,3289.8,3289.6,1.0]
[1722388875077,1.91061063,3289.8,3289.6,1.0]
[1722388875289,1.91061063,3289.7,3289.6,1.0]
[1722388875512,6.07958,3289.7,3289.6,1.0]
[1722388875799,6.91044257,3289.7,3289.6,1.0]
[1722388876523,3.87065257,3289.7,3289.6,1.0]
[1722388877587,4.17065257,3289.7,3289.6,1.0]
[1722388877924,1.13086257,3289.7,3289.6,1.0]
[1722388878487,0.3,3289.7,3289.6,1.0]
[1722388879432,2.21071614,3289.7,3289.6,1.0]
[1722388879587,2.26775466,3289.7,3289.6,1.0]
[1722388880116,0.35703852,3289.7,3289.6,4.03988]
[1722388880319,1.94910541,3289.7,3289.6,7.483748]
[1722388880487,1.63061886,3289.7,3289.6,7.483748]
[1722388880889,1.63061886,3289.7,3289.6,4.443868]
[1722388881090,0.35703852,3289.7,3289.6,4.443868]
[1722388881399,1.63067362,3289.7,3289.6,4.443868]
[1722388882831,0.35703852,3289.7,3289.6,4.443868]
[1722388883239,1.63084974,3289.7,3289.6,4.443868]
[1722388883445,0.35703852,3289.7,3289.6,4.443868]
[1722388883745,1.63099021,3289.7,3289.6,4.443868]
[1722388884292,1.63099021,3289.7,3289.6,1.403988]
[1722388884614,1.89250728,3289.7,3289.6,1.0]
[1722388884814,1.94953414,3289.7,3289.6,1.0]
[1722388885329,0.35702686,3289.7,3289.6,1.0]
[1722388885636,2.26803559,3289.7,3289.6,1.0]
[1722388885807,0.35702686,3289.7,3289.6,1.0]
[1722388889432,2.26834016,3289.7,3289.6,1.0]
[1722388889834,0.35702686,3289.7,3289.6,1.0]
[1722388890639,2.26837393,3289.7,3289.6,1.0]
[1722388891283,5.30811508,3289.7,3289.6,1.0]
[1722388891489,6.35122837,3289.7,3289.6,1.0]
[1722388891688,11.62084773,3289.7,3289.6,1.0]
[1722388892444,3.03994,3289.6,3288.8,3.04061]
[1722388892645,1.27413374,3289.0,3288.8,3.04061]
[1722388893085,0.05696711,3288.9,3288.8,3.04061]
[1722388893269,0.05696711,3288.9,3288.8,3.893018]
[1722388893474,0.05696711,3288.9,3288.8,0.852408]
[1722388893647,1.33110085,3288.9,3288.6,3.04073]
[1722388893860,0.05696711,3288.9,3288.8,3.04062]
[1722388895505,1.27413374,3289.0,3288.8,3.04062]
[1722388895686,0.05683703,3288.9,3288.6,3.04073]
[1722388896007,0.05683703,3288.9,3288.7,0.304073]
[1722388896708,0.05683703,3288.9,3288.7,3.344783]
[1722388897358,0.05683703,3288.9,3288.7,0.304073]
[1722388897560,0.05683703,3288.9,3288.4,3.04095]
[1722388897561,0.05683703,3288.9,3288.6,3.04076]
[1722388897983,1.27413374,3288.9,3288.6,3.04076]
[1722388898664,0.05679271,3288.8,3288.6,3.04076]
[1722388900621,0.05679271,3288.8,3288.7,3.04071]
[1722388901219,1.27413374,3289.0,3288.7,3.04071]
[1722388901404,1.27313509,3289.0,3288.8,0.608147]
[1722388901748,0.05680552,3288.9,3288.8,0.608147]
[1722388901894,0.05680552,3288.9,3288.8,3.648767]
[1722388902089,1.27313509,3289.1,3288.8,3.04062]
[1722388902542,1.27313509,3289.1,3289.0,3.04043]
[1722388903750,1.27313509,3289.1,3288.8,6.08108]
[1722388903914,1.27313509,3289.1,3288.8,3.04054]
[1722388904094,3.03989,3289.6,3288.8,6.08107]
[1722388904294,1.2729427,3289.1,3288.8,3.04053]
[1722388905253,1.2729427,3289.0,3288.8,3.04053]
[1722388905540,1.2729427,3289.1,3288.9,3.04053]
[1722388906111,1.2729427,3289.1,3288.8,3.648662]
[1722388906693,1.2729427,3289.1,3288.9,3.04051]
[1722388907104,1.2729427,3289.1,3288.8,0.608132]
[1722388907309,1.2729427,3289.1,3288.8,3.648732]
[1722388907505,1.2729427,3289.0,3288.8,3.648732]
[1722388907721,0.05581105,3289.0,3288.8,3.648672]
[1722388908030,0.05581105,3289.0,3288.8,3.04056]
[1722388908718,0.05581105,3289.0,3288.9,3.04053]
[1722388909121,1.2729427,3289.5,3289.1,3.04034]
[1722388909320,0.3,3289.7,3289.6,8.48656]
[1722388911698,0.3,3289.7,3289.6,5.44668]
[1722388911926,0.3,3289.7,3289.4,3.04002]
[1722388912340,0.3,3289.7,3289.3,3.04015]
[1722388912629,0.3,3289.7,3289.3,4.1754814]
[1722388912795,0.3,3289.7,3289.4,3.04004]
[1722388912993,0.3,3289.7,3289.3,1.1353314]
[1722388913230,1.2729427,3289.6,3289.3,1.1353314]
[1722388913407,1.2729427,3289.5,3289.3,4.1754814]
[1722388913728,1.27471601,3289.5,3289.4,4.03281954]
[1722388913959,1.27471601,3289.5,3289.4,0.99275954]
[1722388914162,1.27471601,3289.5,3289.4,4.03281954]
[1722388914341,1.57471601,3289.7,3289.4,4.03281954]
[1722388914688,1.57471601,3289.7,3289.6,6.07976]
[1722388914883,0.3,3289.7,3289.6,6.07976]
[1722388915181,1.57471601,3289.7,3289.6,6.07976]
[1722388915664,1.57471601,3289.7,3289.6,3.03988]
[1722388915871,1.8933767,3289.7,3289.6,3.03988]
[1722388916165,1.8933767,3289.7,3289.5,3.44321195]
[1722388916361,0.05238256,3289.6,3289.5,3.44321195]
[1722388917531,1.64650072,3289.6,3289.5,3.44321195]
[1722388918624,0.05238256,3289.6,3289.5,6.48318195]
[1722388918829,1.89411816,3289.7,3289.6,3.03988]
[1722388919030,0.3,3289.7,3289.6,3.6881892]
[1722388919463,1.57531457,3289.7,3289.6,3.6881892]
[1722388919641,0.3,3289.7,3289.6,3.6881892]
[1722388919842,1.57530109,3289.7,3289.6,3.6881892]
[1722388920054,1.6277282,3289.7,3289.6,3.6881892]
[1722388920256,0.35242711,3289.7,3289.6,9.1959692]
[1722388920458,0.3,3289.7,3289.6,9.1959692]
[1722388921148,1.62771704,3289.7,3289.6,9.1959692]
[1722388921973,1.57530109,3289.7,3289.6,9.1959692]
[1722388922171,1.57530109,3289.7,3289.6,3.6881892]
[1722388922372,0.3,3289.7,3289.6,3.03988]
[1722388922578,1.57511926,3289.7,3289.6,3.03988]
[1722388922797,1.62753521,3289.7,3289.6,3.03988]
[1722388923452,1.62753521,3289.7,3289.6,6.07976]
[1722388923651,0.3,3289.7,3289.6,6.7280642]
[1722388925702,1.57491415,3289.7,3289.6,6.7280642]
[1722388926229,0.3,3289.7,3289.6,6.7280642]
[1722388926804,1.57491415,3289.7,3289.6,6.7280642]
[1722388927508,0.3,3289.7,3289.6,6.7280642]
[1722388931208,1.62739087,3289.7,3289.6,6.07976]
[1722388931708,1.62739087,3289.7,3289.5,3.03991]
[1722388931908,1.94564589,3289.7,3289.0,7.43]
[1722388932207,1.27466844,3289.1,3289.0,7.43]
[1722388932406,3.23450459,3289.6,3289.0,7.43]
[1722388932606,1.64605237,3289.1,3289.0,7.43]
[1722388932842,1.91231669,3289.3,3289.0,7.43]
[1722388933041,0.0524843,3289.1,3289.0,7.43]
[1722388933208,1.59361405,3289.1,3289.0,7.43]
[1722388933408,1.64609835,3289.1,3289.0,7.43]
[1722388935403,1.64609835,3289.1,3288.2,7.43]
[1722388935404,0.0524843,3289.1,3288.2,7.43]
[1722388935766,2.4313,3289.2,3288.2,7.43]
[1722388935911,1.27485226,3288.6,3288.2,7.43]
[1722388936114,1.27485226,3288.6,3288.4,3.04092]
[1722388936305,0.0520671,3288.5,3288.4,3.04092]
[1722388936745,1.27485226,3288.6,3288.2,10.47111]
[1722388936919,1.32686248,3288.5,3288.2,7.43]
[1722388937123,1.32686248,3288.5,3288.2,8.5375355]
[1722388937343,1.32686248,3288.5,3288.3,3.04108]
[1722388937858,0.05201022,3288.5,3288.3,3.04108]
[1722388938011,1.27485226,3288.6,3288.3,3.04108]
[1722388938211,0.05204177,3288.4,3288.3,3.04108]
[1722388938435,1.27485226,3288.6,3288.3,4.56347905]
[1722388938662,1.27485226,3288.6,3288.4,3.04099]
[1722388938965,1.27485226,3288.6,3288.5,3.0409]
[1722388939114,1.27485226,3288.7,3288.6,3.0408]
[1722388939310,1.27485226,3288.9,3288.7,3.04071]
[1722388939510,1.27485226,3288.8,3288.7,3.04071]
[1722388939748,1.27434484,3288.9,3288.8,3.04062]
[1722388940112,1.27434484,3289.0,3288.8,3.04062]
[1722388940341,1.27434484,3289.0,3288.6,3.04075]
[1722388940342,1.27434484,3288.9,3288.6,3.04075]
[1722388940523,1.27434484,3288.8,3288.6,3.04075]
[1722388940730,1.27434484,3288.8,3288.7,3.04071]
[1722388941722,1.27434484,3288.8,3288.5,3.04085]
[1722388942162,1.27434484,3288.7,3288.5,3.04085]
[1722388942329,1.27434484,3288.6,3288.5,3.04085]
[1722388942734,1.27434484,3288.7,3288.5,3.04085]
[1722388943282,1.27434484,3288.7,3288.6,3.0408]
[1722388943441,1.27434484,3288.8,3288.6,3.0408]
[1722388943846,1.27434484,3288.7,3288.6,3.0408]
[1722388944078,1.27434484,3288.7,3288.4,3.24091]
[1722388945252,1.27434484,3288.7,3288.4,0.2]
[1722388945457,1.27434484,3288.5,3288.4,0.2]
[1722388945847,1.27434484,3288.6,3288.4,0.2]
[1722388946283,1.27434484,3288.6,3288.4,3.24099]
[1722388946448,1.27434484,3288.7,3288.5,3.0409]
[1722388946627,1.27434484,3288.7,3288.4,0.524099]
[1722388947295,1.27434484,3288.7,3288.5,3.04089]
[1722388947797,1.27434484,3288.8,3288.5,3.04089]
[1722388947932,1.27434484,3288.7,3288.5,3.04089]
[1722388948282,1.27434484,3288.8,3288.5,3.04089]
[1722388948670,1.27398814,3288.7,3288.6,3.0408]
[1722388948875,1.59243119,3289.0,3288.7,3.04065]
[1722388949199,1.27394495,3288.9,3288.7,3.04065]
[1722388949369,1.27394495,3288.8,3288.7,3.04065]
[1722388951003,1.59243119,3289.0,3288.7,3.04065]
[1722388951004,1.27394495,3288.9,3288.8,3.04062]
[1722388951151,1.27394495,3289.0,3288.9,3.04053]
[1722388951356,1.27394495,3289.0,3288.9,6.689178]
[1722388951704,1.91091743,3289.5,3289.2,3.04025]
[1722388951705,1.27394495,3289.4,3289.2,3.04025]
[1722388951841,1.27394495,3289.5,3289.3,3.04016]
[1722388952036,1.27363517,3289.5,3289.2,3.04019]
[1722388952236,1.27363517,3289.4,3289.2,3.04019]
[1722388953003,1.27363517,3289.4,3289.3,3.04016]
[1722388953140,1.27363517,3289.5,3289.4,3.04006]
[1722388953341,1.27363517,3289.6,3289.4,3.04006]
[1722388954606,1.32339735,3289.5,3289.2,0.608049]
[1722388954902,1.32339735,3289.5,3289.4,3.04006]
[1722388956387,0.04976218,3289.5,3289.4,3.04006]
[1722388956655,0.04976218,3289.5,3289.3,3.24015]
[1722388956792,1.32359973,3289.5,3289.3,3.24015]
[1722388957219,1.27383755,3289.4,3289.3,3.24015]
[1722388957421,1.32374612,3289.4,3289.3,3.24015]
[1722388959728,0.04990857,3289.4,3289.3,3.68651445]
[1722388960104,1.32374612,3289.4,3289.3,3.68651445]
[1722388960509,0.04990857,3289.4,3289.3,3.68651445]
[1722388961398,0.04990857,3289.4,3289.3,0.64636445]
[1722388961602,0.04990857,3289.4,3289.3,0.2]
[1722388961603,1.32374612,3289.4,3289.3,0.2]
[1722388961957,0.04990857,3289.4,3289.3,0.2]
[1722388962323,1.91144317,3289.5,3289.3,0.2]
[1722388962642,0.04892411,3289.4,3289.3,0.2]
[1722388963156,1.64173017,3289.4,3289.3,0.2]
[1722388963358,0.04892411,3289.4,3289.3,0.2]
[1722388963659,4.95149317,3289.5,3289.3,0.2]
[1722388963820,0.04893833,3289.4,3289.3,0.2]
[1722388964704,1.9603815,3289.4,3289.3,0.2]
[1722388964940,0.04893833,3289.4,3289.3,0.2]
[1722388965100,1.96058287,3289.4,3289.3,0.2]
[1722388965441,0.04893833,3289.4,3289.3,0.2]
[1722388965961,5.73642616,3289.4,3289.3,0.2]
[1722388966104,6.86484162,3289.4,3289.3,0.2]
[1722388966303,9.09509359,3289.4,3289.3,0.2]
[1722388968404,9.09561668,3289.4,3289.3,0.2]
[1722388968610,9.09562153,3289.4,3289.3,0.2]
[1722388968826,6.86484162,3289.4,3289.3,0.2]
[1722388969030,9.09562153,3289.4,3289.3,0.2]
[1722388970143,6.86484162,3289.4,3289.3,0.2]
[1722388970336,9.09594147,3289.4,3289.3,0.2]
[1722388971758,9.09610267,3289.4,3289.3,0.2]
[1722388972172,9.09609952,3289.4,3289.3,0.2]
[1722388973364,6.86484162,3289.4,3289.3,0.2]
[1722388974310,9.86484162,3289.4,3289.3,0.2]
[1722388976233,12.50161602,3289.4,3289.3,0.2]
[1722388976644,9.86484162,3289.4,3289.3,0.2]
[1722388977049,12.50161602,3289.4,3289.3,0.2]
[1722388977579,18.47449295,3289.4,3289.3,0.2]
[1722388977736,15.31150162,3289.4,3289.3,0.2]
[1722388979306,15.43714356,3289.4,3289.3,0.2]
[1722388979440,12.27144162,3289.4,3289.3,0.2]
[1722388980245,15.43714356,3289.4,3289.3,0.2]
[1722388980472,12.27144162,3289.4,3289.3,0.2]
[1722388981060,15.43714356,3289.4,3289.3,0.2]
[1722388981442,18.47720356,3289.4,3289.3,0.2]
[1722388981646,3.0409,3288.5,3288.4,0.6]
[1722388981857,8.62345008,3288.5,3288.4,0.6]
[1722388982061,5.58255008,3288.5,3288.4,0.6]
[1722388982294,3.08945008,3288.5,3288.4,0.6]
[1722388982868,6.13035008,3288.5,3288.4,0.6]
[1722388983072,7.00714594,3288.5,3288.4,0.6]
[1722388983297,6.19838917,3288.5,3288.4,0.6]
[1722388983804,9.23885327,3288.5,3288.4,0.6]
[1722388984099,6.19795327,3288.5,3288.4,0.6]
[1722388984301,3.96624594,3288.5,3288.4,0.6]
[1722388984472,7.00714594,3288.5,3288.4,0.6]
[1722388984673,9.23885327,3288.5,3288.4,0.6]
[1722388985063,6.19795327,3288.5,3288.4,0.6]
[1722388985395,3.96624594,3288.5,3288.4,0.6]
[1722388985628,3.04108,3288.3,3287.7,3.04163]
[1722388985797,1.27471525,3287.8,3287.5,5.44684]
[1722388986113,0.04845495,3287.7,3287.5,5.44684]
[1722388986332,1.27471525,3287.8,3287.6,3.04173]
[1722388986527,0.04845495,3287.7,3287.6,3.04173]
[1722388986686,1.27471525,3287.8,3287.6,3.04173]
[1722388986892,0.04845495,3287.7,3287.6,3.04173]
[1722388987119,1.27471525,3287.8,3287.6,3.04173]
[1722388987323,0.04835278,3287.7,3287.6,3.04173]
[1722388987617,1.27471525,3287.9,3287.6,3.04173]
[1722388987813,0.04835278,3287.7,3287.6,3.73337873]
[1722388987970,1.27471525,3287.9,3287.6,3.73337873]
[1722388988167,1.27471525,3287.9,3287.7,3.04157]
[1722388988368,0.0483656,3287.8,3287.7,3.04157]
[1722388989084,1.27471525,3287.9,3287.7,3.04157]
[1722388989283,0.0483656,3287.8,3287.7,3.04157]
[1722388989518,1.27471525,3287.9,3287.7,3.04157]
[1722388989703,0.0483656,3287.8,3287.6,0.69164873]
[1722388990043,1.27471525,3287.9,3287.6,0.69164873]
[1722388990767,0.0483656,3287.8,3287.6,3.73336873]
[1722388991044,0.0483656,3287.8,3287.6,0.69164873]
[1722388991352,0.04834441,3287.7,3287.3,3.04197]
[1722388991499,1.27368286,3287.8,3287.3,3.04197]
[1722388991704,0.04824223,3287.7,3287.3,3.04197]
[1722388991905,1.27368286,3287.7,3287.3,3.04197]
[1722388992344,3.04175,3287.6,3286.9,9.8558]
[1722388992564,3.04211,3287.2,3286.9,7.43]
[1722388992866,1.27368286,3287.2,3286.9,7.43]
[1722388993167,1.32162297,3287.1,3286.9,7.43]
[1722388993444,0.04794011,3287.1,3286.9,7.43]
[1722388993953,1.9171572,3287.1,3286.1,3.04309]
[1722388994243,1.27314117,3286.9,3286.4,3.04277]
[1722388994486,1.27314117,3286.8,3286.4,3.04277]
[1722388994636,0.04791183,3286.8,3286.4,3.04277]
[1722388994830,1.321053,3286.8,3286.4,3.04277]
[1722388995068,0.04791183,3286.8,3286.4,3.04277]
[1722388995821,4.31543117,3287.0,3286.2,3.04302]
[1722388996024,0.04790588,3286.7,3286.3,3.04292]
[1722388996351,0.04789306,3286.6,3286.3,3.04292]
[1722388996568,1.27314117,3287.0,3286.4,3.04284]
[1722388996787,0.04789495,3286.5,3286.4,3.04284]
[1722388996957,3.04215,3287.2,3286.4,3.04284]
[1722388996958,1.27314117,3287.1,3286.4,3.04284]
[1722388997176,0.04795908,3287.0,3286.4,3.04284]
[1722388997374,3.09025908,3287.0,3286.4,3.04284]
[1722388998747,3.09025908,3287.0,3286.2,6.95079]
[1722388998942,3.04243,3286.9,3286.2,3.04295]
[1722388999146,0.04793343,3286.8,3286.2,3.04295]
[1722388999391,3.04257,3286.7,3286.0,3.04317]
[1722388999544,0.04793343,3286.8,3285.9,5.47329]
[1722388999545,3.04267,3286.6,3285.9,5.47329]
[1722388999752,0.04769234,3286.5,3285.9,2.43]
[1722389000346,3.04284,3286.4,3285.8,3.04336]
[1722389000547,0.04767452,3286.3,3285.7,3.04348]
[1722389001309,3.09062452,3286.3,3285.6,2.4596]
[1722389001595,3.09062452,3286.3,3285.5,3.04365]
[1722389002025,3.09062452,3286.3,3285.5,3.652399]
[1722389002206,3.09062452,3286.3,3285.6,3.04357]
[1722389002497,3.09062452,3286.3,3285.5,3.652399]
[1722389002498,0.04767452,3286.3,3285.9,3.04329]
[1722389002709,3.04268,3286.6,3285.9,3.04329]
[1722389003067,0.04607887,3286.5,3285.9,3.04329]
[1722389003900,3.08882887,3286.5,3285.7,3.04342]
[1722389004104,3.04284,3286.4,3285.7,3.04342]
[1722389004308,0.04605321,3286.3,3285.7,3.04342]
[1722389004648,0.04605321,3286.3,3285.8,3.04332]
[1722389004874,3.04265,3286.6,3285.7,3.04342]
[1722389004875,3.04265,3286.6,3285.9,3.0433]
[1722389005159,0.04607887,3286.5,3285.9,3.0433]
[1722389005589,0.3,3286.0,3285.9,3.0433]
[1722389007993,0.3,3286.0,3285.9,6.0866]
[1722389009801,0.3,3286.0,3285.9,3.0433]
[1722389010100,0.3,3286.0,3285.7,3.04347]
[1722389010101,0.3,3286.0,3285.7,3.04341]
[1722389010298,0.3,3286.0,3285.9,3.0433]
[1722389011300,0.3,3286.0,3285.9,6.0866]
[1722389011663,0.3,3286.0,3285.9,8.568]
[1722389014717,0.3,3286.0,3285.9,3.0433]
[1722389020029,0.34551961,3286.0,3285.9,3.0433]
[1722389025232,0.34551961,3286.0,3285.9,4.1123]
[1722389025420,0.3,3286.0,3285.9,4.1123]
[1722389025625,0.3,3286.0,3285.9,7.1556]
[1722389026132,0.3,3286.0,3285.9,4.1123]
[1722389027332,0.3,3286.0,3285.9,7.1556]
[1722389027514,0.3,3286.0,3285.9,4.1123]
[1722389029552,0.34511641,3286.0,3285.9,4.1123]
[1722389030223,0.3,3286.0,3285.9,4.1123]
[1722389030420,0.34511641,3286.0,3285.9,4.1123]
[1722389031239,0.3,3286.0,3285.9,4.1123]
[1722389032510,0.3,3286.0,3285.9,4.3123]
[1722389033527,0.34509733,3286.0,3285.9,4.3123]
[1722389036645,0.34509733,3286.0,3285.9,4.5123]
[1722389036646,1.61742552,3286.0,3285.9,4.5123]
[1722389037375,1.94125607,3286.0,3285.9,4.5123]
[1722389038366,0.34509733,3286.0,3285.9,4.5123]
[1722389040745,0.3,3286.0,3285.9,4.7123]
[1722389040961,2.21810238,3286.0,3285.9,4.7123]
[1722389041266,0.34509489,3286.0,3285.9,4.7123]
[1722389041641,2.26319727,3286.0,3285.9,4.7123]
[1722389042268,0.34509489,3286.0,3285.9,4.7123]
[1722389042579,2.26319727,3286.0,3285.9,4.7123]
[1722389042963,0.34509489,3286.0,3285.9,4.7123]
[1722389043165,2.21873751,3286.0,3285.9,4.7123]
[1722389043368,2.2638324,3286.0,3285.9,4.7123]
[1722389043568,2.26426252,3286.0,3285.9,4.7123]
[1722389043880,0.34509489,3286.0,3285.9,0.6]
[1722389044441,2.58412379,3286.0,3285.9,0.6]
[1722389044875,2.58412379,3286.0,3285.9,0.8]
[1722389045169,0.34509489,3286.0,3285.9,0.8]
[1722389046038,2.58500579,3286.0,3285.9,0.8]
[1722389046240,0.34509489,3286.0,3285.9,0.8]